Cogmind - Beta 13 @@@ ROGUE MODE // 2024.04.01 @ 04:43:07 Player: weedlord420 Result: Smashed by cave-in Performance ------------- Evolutions (0) 0 Regions Visited (0) 0 Robots Destroyed (1) 5 Value Destroyed (7) 7 Prototype IDs (0) 0 Alien Tech Used (0) 0 Bonus (0) 0 TOTAL SCORE: 12 Bonus ------- None Cogmind --------- Core Integrity 0/250 Matter 295/300 Energy 177/250 System Corruption 1% Temperature Cool (12) Movement Treading (160) Location -11/Scrapyard Parts ------- > --- POWER (1) -------- Ion Engine > --- PROPULSION (2) --- Light Treads Light Treads > --- UTILITY (2) ------ Improved Terrain Scanner Seismic Detector > --- WEAPON (2) ------- (None) > --- INVENTORY (5) ---- Assault Rifle Light Assault Rifle Peak State ------------ > --- POWER ------------ Ion Engine > --- PROPULSION ------- Light Treads Light Treads > --- UTILITY ---------- Improved Terrain Scanner Seismic Detector > --- WEAPON ----------- Assault Rifle Light Assault Rifle > --- INVENTORY -------- (None) [Rating: 9] Favorites ----------- Power Ion Engine Engine Ion Engine Propulsion Light Treads Treads Light Treads Utility Seismic Detector Device Seismic Detector Weapon Assault Rifle Ballistic Gun Assault Rifle Special Weapon Mining Laser Build | -11 ------- Run | Yrd Slots Evolved . | . Power . | . Propulsion . | . Utility . | . Weapon . | . Parts Attached 8 | 8 Power 1 | 1 Engine 1 | 1 Core . | . Reactor . | . Propulsion 2 | 2 Treads 2 | 2 Leg . | . Wheel . | . Hover . | . Flight . | . Utility 2 | 2 Device 2 | 2 Storage . | . Processor . | . Hackware . | . Protection . | . Artifact . | . Weapon 3 | 3 Energy Gun . | . Energy Cannon . | . Ballistic Gun 2 | 2 Ballistic Cannon . | . Launcher . | . Special Weapon 1 | 1 Impact Weapon . | . Slashing Weapon . | . Piercing Weapon . | . Special Melee Weapon . | . Unidentified Prototypes . | . Parts Lost 1 | 1 Power . | . Propulsion . | . Utility . | . Weapon 1 | 1 Highest Loss Streak 1 | 1 To Critical Strikes . | . Average Slot Usage (%) . | . Naked Turns . | . Heaviest Build 10 | 10 Greatest Support 40 | 40 Greatest Overweight (x) . | . Average Overweight (x) . | . Largest Inventory Capacity 5 | 5 Average Capacity 5 | 5 Most Carried 2 | 2 Average Carried . | . Final Capacity 5 | 5 Final Carried 2 | 2 Class Distribution -------------------- None Dominant Class ---------------- None Resources | -11 ----------- Run | Yrd Matter Collected 328 | 328 Remotely . | . Salvage Created 177 | 177 Parts . | . Haulers Intercepted . | . Recyclers Shooed . | . Parts Field Recycled . | . Retrieved Matter . | . Parts Self-Destructed . | . Prevented . | . Kills | -11 ------- Run | Yrd Combat Hostiles Destroyed 10 | 10 Melee 1 | 1 Guns 9 | 9 Classes Destroyed 2 | 2 Tunneler 1 | 1 Assembled 10 | 10 Best Kill Streak 3 | 3 Combat Bots Only 3 | 3 Max Kills in Single Turn 1 | 1 Gunslinging . | . Exploded . | . Melee 1 | 1 Uniques/NPCs Destroyed . | . Combat | -11 -------- Run | Yrd Hostile Shots Fired 44 | 44 Missed 16 | 16 Damage Taken 524 | 524 Core 260 | 260 Absorbed by Shields . | . Core Remaining (%) . | . Volleys Fired 83 | 83 Largest 2 | 2 Hottest 100 | 100 Shots Fired 106 | 106 Gun 51 | 51 Cannon . | . Launcher . | . Special 55 | 55 Kinetic 51 | 51 Thermal 55 | 55 Explosive . | . Electromagnetic . | . Robot Hit Streak 4 | 4 Robot Miss Streak 3 | 3 Penetration Max . | . Secondary Targets . | . Shots Hit Robots 28 | 28 Core Hits 26 | 26 Critical Kills . | . Critical Parts Destroyed . | . Critical Strikes . | . Melee Attacks . | . Impact . | . Slashing . | . Piercing . | . Sneak Attacks . | . Combat Hostiles . | . Follow-up Attacks . | . Damage Inflicted 360 | 360 Guns 318 | 318 Cannons . | . Explosions . | . Melee . | . Ramming 42 | 42 Kinetic 318 | 318 Thermal . | . Explosive . | . Electromagnetic . | . Impact . | . Slashing . | . Piercing . | . Highest Corruption . | . Average Corruption . | . Corruption Purged . | . Corruption Blocked . | . Overload Shots . | . Overflow Damage . | . Projectiles . | . Explosions . | . Melee . | . Knockbacks . | . Impact . | . Kinetic . | . Secondary . | . Self-Inflicted Damage 15 | 15 Shots . | . Rammed 14 | 14 Targets Rammed 14 | 14 Kicked . | . Crushed . | . Highest Temperature 280 | 280 Average Temperature 59 | 59 Received Heat Transfer 20 | 20 Effects 1 | 1 Energy Bleed 1 | 1 Siege Activations . | . Robots Corrupted . | . Combat Hostiles . | . Parts Fried 1 | 1 Impact Corruptions . | . Robots Melted . | . Combat Hostiles . | . Parts Melted . | . Heat Transferred . | . Parts Sabotaged . | . Parts Stolen . | . Parts Stripped . | . Power Chain Reactions . | . Alert | -11 ------- Run | Yrd Peak Influence 45 | 45 Initial . | . Average 6 | 6 Maximum Alert Level . | . Low Security (%) 100 | 100 Level 1 . | . Level 2 . | . Level 3 . | . Level 4 . | . Level 5 . | . High Security . | . Max Security . | . Squads Dispatched . | . Investigation . | . Extermination . | . Reinforcement . | . Assault . | . Garrison . | . Intercept . | . Searches Triggered . | . Construction Impeded . | . Haulers Reinforced . | . Active Scanning Responses . | . Cargo Convoy Interrupts . | . Stealth | -11 --------- Run | Yrd Distress Signals . | . Communications Jammed . | . Distress Signals . | . Times Spotted 12 | 12 Peak Tracking Total 2 | 2 Tactical Retreats 2 | 2 Traps | -11 ------- Run | Yrd Traps Triggered . | . Indirectly . | . Trap Hack Attempts . | . Triggered . | . Disarmed . | . Reprogrammed . | . Reused . | . Traps Extracted . | . Installed . | . Triggered . | . Machines | -11 ---------- Run | Yrd Machines Disabled . | . Max in Single Turn . | . Machines Repaired . | . Machines Dismantled . | . Machines Sabotaged . | . Overloaded Fab Kills . | . Hacking | -11 --------- Run | Yrd Machines Accessed . | . Terminals . | . Fabricators . | . Repair Stations . | . Recycling Units . | . Scanalyzers . | . Garrison Access . | . Total Hacks . | . Successful . | . Failed . | . Catastrophic . | . Database Lockouts . | . Manual . | . Terminals . | . Fabricators . | . Repair Stations . | . Recycling Units . | . Scanalyzers . | . Garrison Access . | . Terminal Hacks . | . Fabricator Hacks . | . Repair Station Hacks . | . Recycling Unit Hacks . | . Scanalyzer . | . Garrison Access Hacks . | . Unauthorized Hacks . | . Terminals . | . Fabricators . | . Repair Stations . | . Recycling Units . | . Scanalyzers . | . Garrison Access . | . Data Cores Recovered . | . Used . | . Hacking Detections . | . Full Trace Events . | . Feedback Events . | . Feedback Blocked . | . Robot Schematics Acquired . | . Robots Built . | . Authchips . | . Time . | . Total Robot Build Rating . | . Part Schematics Acquired . | . Parts Built . | . Authchips . | . Time . | . Total Part Build Rating . | . Parts Repaired . | . Time . | . Parts Recycled . | . Recycled Matter . | . Retrieved Matter . | . Retrieved Components . | . Parts Scanalyzed . | . Part Schematics Acquired . | . Parts Damaged . | . Bothacking | -11 ------------ Run | Yrd Used RIF Installer . | . Robots Hacked . | . Non-combat . | . Combat . | . Robot Hacks Applied . | . Relay Couplers Released . | . Fabnet Peak Effective % . | . Robots Rewired . | . Allies Hacked . | . Hacks Repelled . | . Allies | -11 -------- Run | Yrd Total Allies . | . Largest Group . | . Highest-Rated Group . | . Highest-Rated Ally . | . Total Orders . | . Ally Attacks . | . Total Damage . | . Kills . | . Allies Corrupted . | . Allies Melted . | . Intel | -11 ------- Run | Yrd Robot Analysis Total . | . Derelict Logs Recovered . | . Drone Launches . | . Drone Recoveries . | . Exploration | -11 ------------- Run | Yrd Turns Passed 4480 | 4480 Spaces Moved 727 | 727 Core 147 | 147 Treads 580 | 580 Legs . | . Wheels . | . Hover . | . Flight . | . Fastest Speed 50 | 50 Average Speed 137 | 137 Slowest Speed 160 | 160 Overloaded Moves . | . Propulsion Burnouts . | . Robots Hopped . | . Cave-ins Triggered 1 | 1 Exploration Rate (%) 81 | 81 Regions Visited . Branch Regions . Pre-discovered Areas . | . Known Exits Taken . | . Unknown Exits Taken . | . Scrap Searched . | . Spaces Dug 25 | 25 Terrain Destroyed 34 | 34 Melee . | . Projectile 34 | 34 AOE . | . Terrain Rammed . | . Walls Destroyed . | . Machines Disabled . | . Actions | -11 --------- Run | Yrd Total 3997 | 3997 Wait 3156 | 3156 Move 727 | 727 Hop . | . Pick Up 8 | 8 Fast Attach . | . Attach 7 | 7 Detach 1 | 1 Swap 1 | 1 Drop . | . Fire 83 | 83 Melee . | . Ram 14 | 14 Kick . | . Crush . | . Escape Stasis . | . Rewire . | . Trap . | . Miscellaneous . | . Route ------- -11/Scrapyard (discovered 1 exit: [*Mat]) History --------- Turn | Location | Event 2978 | -11/Scrapyard | Assembled infested the area 3148 | -11/Scrapyard | Core integrity fell below 50% 3179 | -11/Scrapyard | Discovered new exit (range 15) 3312 | -11/Scrapyard | Core integrity fell below 20% 4482 | -11/Scrapyard | Crushed by falling debris 4482 | -11/Scrapyard | Smashed by cave-in Last Messages --------------- as-94320 destroyed. as-58053 destroyed. Acquired 17 matter. Acquired 65 matter. Destroyed Asb. F-torch. Acquired 17 matter. as-54989 destroyed. as-46490 destroyed. as-36364 destroyed. Acquired 18 matter. Acquired 15 matter. Acquired Mining Laser. as-87632 destroyed. Acquired 12 matter. The unstable cave ceiling collapses. Overheating: Energy bleed (-10). The unstable cave ceiling collapses. Crushed by falling debris. Mining Laser destroyed. System corrupted by crushing effect (+1). Map ----- +----------------------------------------------------+ | ????????????????# !=!%= = * | | ????????????????# *%*! % == = | | | ????????????????#### ############# ### [% %#### | | ???????????????### #?#???? # #??? | | ???????????????# #????? # #??? | | ???????????????# #???? #### ####### | | ???????????????# #??# #??# ## | | ???????????????# #??# #??# ## | | ???????????????# #??# #??# ## | | ???????????????# #??# #??# ## | | ???????????????# ##??# #??# ## | | ???????????????##########???# #?## ## | | ????????????????????#???????##########?# ### ## | | ????????????????????????###?#?#?##?##### ! = | | ????????????????????????###??#?#???????# | | ?????????????????#????#???#??????#?????# ### ## | | ???????????????????????????############## # | | ?????????????????????????#?# # ## | | ????????????????????##???#?# # ## | | ???????????????????#???????# ## | | ???????????????????##??????# # ## | | ??????????????????##???#?#?# ## | | ????????????????#????##??#?############## ## | | ?????????????????#???????????############ ### | | ???????????????????????####### # | | ???????????????????????# @## # # | | ???????????????????????### #### # | | ?????????????????####????###### # | | ?????????????????????#??#???# ###### | | ?????????????????????#??#???## ####### ###?###? | | ?????????????#????#??????#???# ##??##?## ###??## | | ??????????????????#????????#?#####?####### #####? | | ??????????????????????????#??????#?####?# # #???? | | ???????????????????#??#??#????#??#????### #?#?? | | ???????????????????##?#???#????##?????# # ####? | | ???????????????????????#?#?#????##????## # #? | | ?????????????????????#?#?#?#??#????###?## # # ##? | | ??????????????????????#???????#??##?????### ### ## | | ????????????????????????#??#??#?#?#??#???####??##? | | ??????????????????????????#?????#??####??????????? | | ???????????????????????????????????#?#?????#?????? | | ???????????????????????????##???#??##?##??#??????? | | ??????????????????????????????##?##??????????????? | | ???????????????????????????#???#?#####?#?????????? | | ??????????????????????????????????????????#???#?#? | | ???????????????????????????????????????????????#?? | | ?????????????????????????????????????????????????? | | ?????????????????????????????????????#????##?????? | | ?????????????????????????????????#????#?????#???#? | | ??????????????????????????????????????#??????????? | +----------------------------------------------------+ Best States ------------- Heat Dissipation 25 Energy Generation 10 Energy Capacity 250 Matter Stores 300 Matter Capacity 300 Sight Range 16 Terrain Scan Range 16 Terrain Scan Density 10 Evasion (%) 50 Recoil Reduction 2 Item Schematics ----------------- None Robot Schematics ------------------ None Fabricated ------------ Nothing Alien Tech Used ----------------- None Achievements -------------- None Challenges ------------ None Game ------ Seed AutogunMappingGuard Manual? 0 Play Time 00:14:16 Cumulative 11.8 hours Start 2024.04.01 @ 04:35:56 End 2024.04.01 @ 04:43:07 Sessions 0 Manual Loads 0 Difficulty Rogue Special Mode None Game No. 25 Rogue 24 Adventurer 1 Explorer 0 Win Type - Total 0 Types 0/0/0/0/0/0/0/0/0 Lore% 3 Gallery% 16 Achievement% 16 Wizard Run 0 Options --------- Layout 1 ASCII 0 Keyboard 0 Movement Mouse Keybinds 0 Fullscreen 2 Font 24/Terminus Map View 50x35 Zoom Use 0% Tactical HUD 0 Map Filters NONE Filters NONE Steam 1 RUN: f952fca4-1b97-4fc6-947d-fd1e18371145